Cogmind - Beta 13 *** ADVENTURER MODE // 2024.04.07 @ 01:52:35 Player: fippe Result: Destroyed by L-41 Fighter with Axe Performance ------------- Evolutions (3) 1500 Regions Visited (11) 2200 Robots Destroyed (92) 460 Value Destroyed (3146) 3146 Prototype IDs (12) 240 Alien Tech Used (0) 0 Bonus (372) 372 TOTAL SCORE: 7918 Bonus ------- High Alert Combat Kills 8 Follower Combat Kills 64 Met Data Miner 300 Cogmind --------- Core Integrity 0/700 Matter 300/300 Energy 160/160 System Corruption 1% Temperature Cool (0) Movement Core (200) Ox3 Location -6/Proximity Caves Parts ------- > --- POWER (2) -------- Light Nuclear Core > --- PROPULSION (3) --- (None) > --- UTILITY (6) ------ Coolant Injector Improved Signal Interpreter Improved Salvage Targeting Computer Advanced Melee Analysis Suite Experimental Thermal Shield > --- WEAPON (2) ------- Spear > --- INVENTORY (5) ---- Improved Heat Sink High-capacity Matter Pod (200) Advanced ECM Suite Autogun Peak State ------------ > --- POWER ------------ Light Nuclear Core > --- PROPULSION ------- Improved Medium Treads VTOL Module VTOL Module > --- UTILITY ---------- Cryofiber Web Coolant Injector Improved Signal Interpreter Improved Salvage Targeting Computer Advanced Melee Analysis Suite Experimental Thermal Shield > --- WEAPON ----------- Ripper Spear > --- INVENTORY -------- Improved Heat Sink High-capacity Matter Pod Advanced ECM Suite Autogun [Rating: 49] Favorites ----------- Power Improved Ion Engine Engine Improved Ion Engine Power Core Light Nuclear Core Propulsion Aluminum Leg Treads Improved Medium Treads Leg Aluminum Leg Wheel Compact Wheel Hover Unit Gravmag System Flight Unit Xenon Bombardment Thruster Utility Improved Targeting Computer Device Improved Heat Sink Storage Small Storage Unit Processor Improved Targeting Computer Hackware System Shield Protection Improved Light Armor Plating Weapon Particle Gun Energy Gun Particle Gun Energy Cannon Particle Cannon Ballistic Gun Autogun Ballistic Cannon Gauss Cannon Launcher Heavy Rocket Launcher Impact Weapon Hammer Slashing Weapon Ripper Piercing Weapon Spear Build | -11 -10 -9 -9 -9 -8 -8 -7 -7 -7 -7 -6 ------- Run | Yrd Mat Mat Min Exi Min Mat Fac Low Low Dat Pro Slots Evolved 6 | . . 2 . . . 2 2 . . . . Power 1 | . . . . . . . 1 . . . . Propulsion 1 | . . . . . . 1 . . . . . Utility 4 | . . 2 . . . 1 1 . . . . Weapon . | . . . . . . . . . . . . Parts Attached 108 | 7 4 8 4 . 2 28 21 23 4 . 7 Power 9 | 2 . 1 . . . 1 2 2 . . 1 Engine 5 | 2 . 1 . . . 1 . 1 . . . Core 4 | . . . . . . . 2 1 . . 1 Reactor . | . . . . . . . . . . . . Propulsion 27 | 3 . 2 . . . 9 5 5 2 . 1 Treads 1 | . . . . . . . . . . . 1 Leg 15 | 2 . 2 . . . 8 1 2 . . . Wheel 2 | 1 . . . . . 1 . . . . . Hover 1 | . . . . . . . 1 . . . . Flight 8 | . . . . . . . 3 3 2 . . Utility 34 | 1 1 2 . . 1 11 8 5 1 . 4 Device 17 | . . 1 . . 1 3 5 4 . . 3 Storage 2 | 1 . . . . . . 1 . . . . Processor 6 | . 1 1 . . . 2 . . 1 . 1 Hackware 1 | . . . . . . . . 1 . . . Protection 8 | . . . . . . 6 2 . . . . Artifact . | . . . . . . . . . . . . Weapon 38 | 1 3 3 4 . 1 7 6 11 1 . 1 Energy Gun 22 | 1 3 2 2 . 1 5 4 4 . . . Energy Cannon 2 | . . 1 . . . 1 . . . . . Ballistic Gun 1 | . . . . . . . . . 1 . . Ballistic Cannon 1 | . . . . . . . . 1 . . . Launcher 2 | . . . . . . . . 2 . . . Special Weapon . | . . . . . . . . . . . . Impact Weapon 3 | . . . 2 . . 1 . . . . . Slashing Weapon 2 | . . . . . . . . 1 . . 1 Piercing Weapon 5 | . . . . . . . 2 3 . . . Special Melee Weapon . | . . . . . . . . . . . . Unidentified Prototypes 2 | . . . . . . 1 . . . . 1 Parts Lost 30 | . . 1 . . . 8 2 15 1 . 3 Power 4 | . . . . . . 1 . 3 . . . Propulsion 11 | . . . . . . 2 1 6 1 . 1 Utility 7 | . . . . . . 1 1 4 . . 1 Weapon 8 | . . 1 . . . 4 . 2 . . 1 Highest Loss Streak 8 | . . 1 . . . 3 1 8 1 . 3 To Critical Strikes . | . . . . . . . . . . . . Average Slot Usage (%) 91 | . 99 99 100 100 100 91 98 62 45 61 84 Engine 7 | . 14 11 11 11 11 6 7 1 . . . Core 1 | . . . . . . . 7 1 . . 5 Leg 17 | . 28 22 22 22 22 21 14 3 2 . . Flight 3 | . . . . . . . 4 9 7 15 13 Device 10 | . . 11 11 11 11 9 14 11 7 7 19 Storage 8 | . 14 11 11 11 11 9 7 4 . . . Processor 18 | . 13 22 22 22 22 18 15 15 16 23 23 Protection 2 | . . . . . . 8 6 1 . . . Energy Gun 12 | . 28 14 18 11 20 10 13 3 . . . Impact Weapon 2 | . . . 3 11 1 5 . . . . . Piercing Weapon 1 | . . . . . . . 1 5 7 7 7 Naked Turns . | . . . . . . . . . . . . Heaviest Build 31 | 11 16 19 19 18 19 25 31 26 6 6 14 Greatest Support 47 | 20 20 20 20 20 20 47 47 27 8 8 30 Greatest Overweight (x) 4 | 1 . . . . . 1 1 4 . . . Average Overweight (x) . | . . . . . . . . . . . . Largest Inventory Capacity 8 | 8 8 8 8 8 8 8 8 8 5 5 5 Average Capacity 7 | 7 8 8 8 8 8 8 8 6 5 5 5 Most Carried 8 | 5 8 8 8 8 8 8 8 8 5 5 5 Average Carried 7 | 3 7 6 7 7 8 7 7 6 5 5 4 Final Capacity 8 | 8 8 8 8 8 8 8 8 5 5 5 5 Final Carried 8 | 5 8 7 8 8 8 8 8 5 5 5 4 Class Distribution -------------------- 57% | Scavenger-Mutant 33% | Mutant 4% | Hacker-Mutant Dominant Class ---------------- Mutant | -10/Materials Mutant | -9/Materials Scavenger-Mutant | -9/Mines Scavenger-Mutant | -9/Exiles Scavenger-Mutant | -8/Mines Mutant | -8/Materials Scavenger-Mutant | -7/Factory Mutant | -7/Lower Caves Scavenger-Sprinter | -7/Lower Caves Scavenger-Sprinter | -7/Data Miner Scavenger-Mutant | -6/Proximity Caves Resources | -11 -10 -9 -9 -9 -8 -8 -7 -7 -7 -7 -6 ----------- Run | Yrd Mat Mat Min Exi Min Mat Fac Low Low Dat Pro Matter Collected 1302 | 227 83 75 40 . 20 230 223 288 30 . 86 Remotely . | . . . . . . . . . . . . Salvage Created 3164 | . 334 451 114 . 162 821 393 443 67 . 379 Parts 163 | . 19 39 3 . 7 21 26 26 4 . 18 Haulers Intercepted 2 | . 2 . . . . . . . . . . Recyclers Shooed 2 | . 1 1 . . . . . . . . . Parts Field Recycled . | . . . . . . . . . . . . Retrieved Matter . | . . . . . . . . . . . . Parts Self-Destructed 41 | . . . . . . . . 25 1 . 15 Prevented . | . . . . . . . . . . . . Kills | -11 -10 -9 -9 -9 -8 -8 -7 -7 -7 -7 -6 ------- Run | Yrd Mat Mat Min Exi Min Mat Fac Low Low Dat Pro Combat Hostiles Destroyed 78 | . 2 13 2 . 5 17 11 19 3 . 6 Melee 21 | . . . . . . 5 1 6 3 . 6 Guns 35 | . 2 7 1 . 4 8 10 3 . . . Cannons 6 | . . 6 . . . . . . . . . AOE 10 | . . . . . . . . 10 . . . Classes Destroyed 12 | . 4 3 1 . 1 1 1 . . . 1 Worker 1 | . . 1 . . . . . . . . . Tunneler 2 | . . . 2 . . . . . . . . Hauler 2 | . 2 . . . . . . . . . . Recycler 2 | . 1 1 . . . . . . . . . Watcher 7 | . 3 3 . . . . 1 . . . . Swarmer 27 | . . 8 . . 2 . 4 10 3 . . Grunt 35 | . 2 4 2 . 2 13 2 6 . . 4 Brawler 1 | . . . . . . 1 . . . . . Duelist 3 | . . . . . 1 1 1 . . . . Sentry 6 | . . 1 . . . 2 1 1 . . 1 Programmer 5 | . . . . . . . 3 2 . . . Behemoth 1 | . . . . . . . . . . . 1 Best Kill Streak 12 | . 5 12 2 . 3 4 4 11 3 . 5 Combat Bots Only 11 | . 2 9 1 . 3 4 4 11 3 . 5 Max Kills in Single Turn 2 | . 2 2 2 . 1 1 1 2 1 . 1 Gunslinging . | . . . . . . . . . . . . Exploded 2 | . . . . . . . . 2 . . . Melee 1 | . . . . . . 1 1 1 1 . 1 Uniques/NPCs Destroyed . | . . . . . . . . . . . . Combat | -11 -10 -9 -9 -9 -8 -8 -7 -7 -7 -7 -6 -------- Run | Yrd Mat Mat Min Exi Min Mat Fac Low Low Dat Pro Hostile Shots Fired 557 | . 4 91 1 . 10 144 43 219 14 . 31 Missed 181 | . 2 27 1 . 4 35 12 89 5 . 6 Damage Taken 4433 | . 17 453 . . 69 1360 404 1655 105 . 370 Core 1121 | . . 76 . . 21 304 54 464 59 . 143 Absorbed by Shields . | . . . . . . . . . . . . Redirected to Shielding 36 | . . . . . . 36 . . . . . Ignored by Resistances 1429 | . 6 144 . . 20 398 118 474 30 . 239 Regen/Repaired (Parts) 129 | . . . . . . 55 74 . . . . Core Remaining (%) 79 | 100 100 . . . 75 44 . . . . . Volleys Fired 139 | . 12 30 2 . 10 42 22 17 . . 4 Largest 2 | . 2 2 2 . 2 2 2 2 . . 1 Hottest 145 | . 112 124 121 . 121 123 145 145 . . 23 Shots Fired 213 | . 24 50 4 . 12 66 32 21 . . 4 Gun 184 | . 24 34 4 . 12 62 32 12 . . 4 Cannon 20 | . . 16 . . . 4 . . . . . Launcher 9 | . . . . . . . . 9 . . . Special . | . . . . . . . . . . . . Kinetic 4 | . . . . . . . . . . . 4 Thermal 200 | . 24 50 4 . 12 66 32 12 . . . Explosive 9 | . . . . . . . . 9 . . . Electromagnetic . | . . . . . . . . . . . . Robot Hit Streak 25 | . 17 20 1 . 9 25 25 16 . . 10 Robot Miss Streak 4 | . 1 1 2 . 1 1 4 3 . . . Penetration Max . | . . . . . . . . . . . . Secondary Targets 2 | . . 2 . . . . . . . . . Max Gunslinging Chain 1 | . . 1 . . . . . . . . . Shots Hit Robots 264 | . 20 39 3 . 11 88 34 33 4 . 32 Core Hits 150 | . 10 19 2 . 5 25 46 30 3 . 10 Critical Kills . | . . . . . . . . . . . . Critical Parts Destroyed 8 | . . . 1 . 1 6 . . . . . Critical Strikes 30 | . 2 4 1 . 1 11 1 4 1 . 5 Burn 11 | . 2 4 . . . 5 . . . . . Smash 8 | . . . 1 . 1 6 . . . . . Sever 4 | . . . . . . . . . . . 4 Impale 7 | . . . . . . . 1 4 1 . 1 Melee Attacks 120 | . . . 21 . 1 43 4 19 4 . 28 Impact 65 | . . . 21 . 1 43 . . . . . Slashing 21 | . . . . . . . . . . . 21 Piercing 34 | . . . . . . . 4 19 4 . 7 Sneak Attacks 3 | . . . 2 . . . . 1 . . . Combat Hostiles 2 | . . . 1 . . . . 1 . . . Follow-up Attacks 3 | . . . . . . . . . . . 3 Damage Inflicted 6858 | . 307 673 105 . 186 1850 730 1807 131 . 1069 Guns 2739 | . 307 425 32 . 168 926 607 214 . . 60 Cannons 345 | . . 248 . . . 97 . . . . . Explosions 1095 | . . . . . . . . 1095 . . . Melee 2676 | . . . 73 . 18 827 123 498 131 . 1006 Ramming 3 | . . . . . . . . . . . 3 Kinetic 60 | . . . . . . . . . . . 60 Thermal 3024 | . 307 673 32 . 168 1023 607 214 . . . Explosive 1095 | . . . . . . . . 1095 . . . Electromagnetic . | . . . . . . . . . . . . Impact 918 | . . . 73 . 18 827 . . . . . Slashing 798 | . . . . . . . . . . . 798 Piercing 960 | . . . . . . . 123 498 131 . 208 Highest Corruption 1 | . 1 . . . . . . 1 1 1 1 Average Corruption 1 | . 1 . . . . . . 1 1 1 1 Corruption Purged . | . . . . . . . . . . . . Corruption Blocked . | . . . . . . . . . . . . Effects 8 | . 1 . . . . . . 4 1 . 2 Message Errors 4 | . . . . . . . . 3 . . 1 Heat Flow Errors 1 | . . . . . . . . 1 . . . Parts Rejected 1 | . . . . . . . . . . . 1 Data Loss (minor) 2 | . 1 . . . . . . . 1 . . Overload Shots . | . . . . . . . . . . . . Overflow Damage 471 | . . . 43 . 18 277 21 88 6 . 18 Projectiles . | . . . . . . . . . . . . Explosions 88 | . . . . . . . . 88 . . . Melee 383 | . . . 43 . 18 277 21 . 6 . 18 Knockbacks 4 | . . . . . . 4 . . . . . Impact 4 | . . . . . . 4 . . . . . Kinetic . | . . . . . . . . . . . . Secondary . | . . . . . . . . . . . . Self-Inflicted Damage 52 | . . . . . . . . 52 . . . Shots 2 | . . . . . . . . 2 . . . Rammed 1 | . . . . . . . . . . . 1 Targets Rammed 1 | . . . . . . . . . . . 1 Kicked . | . . . . . . . . . . . . Crushed . | . . . . . . . . . . . . Highest Temperature 228 | . 165 228 24 . 48 137 214 217 . . 2 Average Temperature 61 | . 58 77 16 . 25 45 77 64 . . 2 Received Heat Transfer 1839 | . 12 105 . . 45 1053 54 390 . . 180 Siege Activations . | . . . . . . . . . . . . Robots Corrupted . | . . . . . . . . . . . . Combat Hostiles . | . . . . . . . . . . . . Parts Fried 5 | . . . 3 . 1 1 . . . . . Impact Corruptions 15 | . . . 3 . 1 11 . . . . . Robots Melted 1 | . . . . . . 1 . . . . . Combat Hostiles 1 | . . . . . . 1 . . . . . Parts Melted 15 | . 3 2 . . . 7 3 . . . . Heat Transferred 7328 | . 925 1813 74 . 370 2664 1009 473 . . . Parts Sabotaged . | . . . . . . . . . . . . Parts Stolen . | . . . . . . . . . . . . Parts Stripped . | . . . . . . . . . . . . Power Chain Reactions . | . . . . . . . . . . . . Alert | -11 -10 -9 -9 -9 -8 -8 -7 -7 -7 -7 -6 ------- Run | Yrd Mat Mat Min Exi Min Mat Fac Low Low Dat Pro Peak Influence 400 | . 96 400 201 . 155 234 245 . . . . Initial 132 | . . . 132 . . 51 . . . . . Average 100 | . 40 164 86 . 92 139 90 . . . . Maximum Alert Level 2 | . . 2 1 . . 1 1 . . . . Low Security (%) 83 | 100 100 51 78 . 100 82 88 . . . . Level 1 15 | . . 40 21 . . 17 11 . . . . Level 2 . | . . 7 . . . . . . . . . Level 3 . | . . . . . . . . . . . . Level 4 . | . . . . . . . . . . . . Level 5 . | . . . . . . . . . . . . High Security . | . . . . . . . . . . . . Max Security . | . . . . . . . . . . . . Squads Dispatched 9 | . . 1 . . . 4 3 . . . 1 Investigation 3 | . . . . . . 3 . . . . . Extermination 3 | . . . . . . . 3 . . . . Reinforcement 2 | . . 1 . . . 1 . . . . . Assault 1 | . . . . . . . . . . . 1 Garrison . | . . . . . . . . . . . . Intercept . | . . . . . . . . . . . . Searches Triggered . | . . . . . . . . . . . . Construction Impeded . | . . . . . . . . . . . . Haulers Reinforced . | . . . . . . . . . . . . Active Scanning Responses . | . . . . . . . . . . . . Cargo Convoy Interrupts . | . . . . . . . . . . . . Stealth | -11 -10 -9 -9 -9 -8 -8 -7 -7 -7 -7 -6 --------- Run | Yrd Mat Mat Min Exi Min Mat Fac Low Low Dat Pro Distress Signals 3 | . . 2 . . . 1 . . . . . Communications Jammed . | . . . . . . . . . . . . Distress Signals . | . . . . . . . . . . . . Times Spotted 125 | . 5 22 3 . 8 25 17 32 3 . 10 Peak Tracking Total 13 | . 3 10 3 . 3 4 4 13 3 . 13 Tactical Retreats 11 | . . 1 . . 1 3 . 4 . . 2 Traps | -11 -10 -9 -9 -9 -8 -8 -7 -7 -7 -7 -6 ------- Run | Yrd Mat Mat Min Exi Min Mat Fac Low Low Dat Pro Traps Triggered 1 | . 1 . . . . . . . . . . Indirectly . | . . . . . . . . . . . . Trap Hack Attempts . | . . . . . . . . . . . . Triggered . | . . . . . . . . . . . . Disarmed . | . . . . . . . . . . . . Reprogrammed . | . . . . . . . . . . . . Reused . | . . . . . . . . . . . . Traps Extracted . | . . . . . . . . . . . . Installed . | . . . . . . . . . . . . Triggered . | . . . . . . . . . . . . Machines | -11 -10 -9 -9 -9 -8 -8 -7 -7 -7 -7 -6 ---------- Run | Yrd Mat Mat Min Exi Min Mat Fac Low Low Dat Pro Machines Disabled 4 | . . 1 . . . . . 3 . . . Max in Single Turn 2 | . . 1 . . . . . 2 . . . Garrison Access 1 | . . . . . . . 1 . . . . Machines Repaired . | . . . . . . . . . . . . Machines Dismantled . | . . . . . . . . . . . . Machines Sabotaged . | . . . . . . . . . . . . Overloaded Fab Kills . | . . . . . . . . . . . . Hacking | -11 -10 -9 -9 -9 -8 -8 -7 -7 -7 -7 -6 --------- Run | Yrd Mat Mat Min Exi Min Mat Fac Low Low Dat Pro Machines Accessed 27 | . 3 5 . 4 . 5 5 1 . 4 . Terminals 9 | . 2 3 . . . 3 1 . . . . Fabricators . | . . . . . . . . . . . . Repair Stations 2 | . . . . . . 1 1 . . . . Recycling Units 2 | . 1 . . . . . 1 . . . . Scanalyzers 4 | . . 2 . . . 1 1 . . . . Garrison Access 1 | . . . . . . . 1 . . . . Total Hacks 88 | . 7 19 . 4 . 19 11 1 . 27 . Successful 73 | . 1 15 . 4 . 16 9 1 . 27 . Failed 15 | . 6 4 . . . 3 2 . . . . Catastrophic 2 | . 1 . . . . 1 . . . . . Database Lockouts . | . . . . . . . . . . . . Manual 27 | . 5 8 . . . 10 4 . . . . Terminals 27 | . 5 9 . . . 8 5 . . . . Fabricators . | . . . . . . . . . . . . Repair Stations 7 | . . . . . . 5 2 . . . . Recycling Units 3 | . 2 . . . . . 1 . . . . Scanalyzers 18 | . . 10 . . . 6 2 . . . . Garrison Access 1 | . . . . . . . 1 . . . . Terminal Hacks 41 | . . 3 . 4 . 5 1 1 . 27 . Record 11 | . . . . 4 . . . . . 7 . Part Schematic 11 | . . . . . . . . . . 11 . Robot Schematic 6 | . . . . . . . . . . 6 . Robot Analysis 5 | . . 2 . . . 2 1 . . . . Prototype ID Bank 3 | . . . . . . . . . . 3 . Open Door 1 | . . . . . . . . 1 . . . Level Access Points 1 | . . . . . . 1 . . . . . Branch Access Points 1 | . . . . . . 1 . . . . . Unreport Threat 1 | . . . . . . 1 . . . . . Zone Layout 1 | . . 1 . . . . . . . . . Fabricator Hacks . | . . . . . . . . . . . . Repair Station Hacks 6 | . . . . . . 4 2 . . . . Scan Component 3 | . . . . . . 2 1 . . . . Repair 3 | . . . . . . 2 1 . . . . Recycling Unit Hacks 2 | . 1 . . . . . 1 . . . . Report Inventory 1 | . . . . . . . 1 . . . . Retrieve Components 1 | . 1 . . . . . . . . . . Scanalyzer 18 | . . 10 . . . 6 2 . . . . Insert Component 9 | . . 5 . . . 3 1 . . . . Analyze 9 | . . 5 . . . 3 1 . . . . Garrison Access Hacks 1 | . . . . . . . 1 . . . . Seal Access 1 | . . . . . . . 1 . . . . Unauthorized Hacks 5 | . . 2 . . . 1 2 . . . . Terminals 5 | . . 2 . . . 1 2 . . . . Assimilate 2 | . . 1 . . . . 1 . . . . Botnet 3 | . . 1 . . . 1 1 . . . . Fabricators . | . . . . . . . . . . . . Repair Stations . | . . . . . . . . . . . . Recycling Units . | . . . . . . . . . . . . Scanalyzers . | . . . . . . . . . . . . Garrison Access . | . . . . . . . . . . . . Data Cores Recovered . | . . . . . . . . . . . . Used . | . . . . . . . . . . . . Hacking Detections 15 | . 2 5 . . . 5 3 . . . . Full Trace Events 6 | . 1 1 . . . 4 . . . . . Feedback Events . | . . . . . . . . . . . . Feedback Blocked . | . . . . . . . . . . . . Robot Schematics Acquired 6 | . . . . . . . . . . 6 . Robots Built . | . . . . . . . . . . . . Authchips . | . . . . . . . . . . . . Time . | . . . . . . . . . . . . Total Robot Build Rating . | . . . . . . . . . . . . Part Schematics Acquired 19 | . . 4 . . . 3 1 . . 11 . Parts Built . | . . . . . . . . . . . . Authchips . | . . . . . . . . . . . . Time . | . . . . . . . . . . . . Total Part Build Rating . | . . . . . . . . . . . . Parts Repaired 3 | . . . . . . 2 1 . . . . Time 107 | . . . . . . 88 19 . . . . Parts Recycled . | . . . . . . . . . . . . Recycled Matter . | . . . . . . . . . . . . Retrieved Matter . | . . . . . . . . . . . . Retrieved Components . | . . . . . . . . . . . . Parts Scanalyzed 9 | . . 5 . . . 3 1 . . . . Part Schematics Acquired 8 | . . 4 . . . 3 1 . . . . Parts Damaged . | . . . . . . . . . . . . Bothacking | -11 -10 -9 -9 -9 -8 -8 -7 -7 -7 -7 -6 ------------ Run | Yrd Mat Mat Min Exi Min Mat Fac Low Low Dat Pro Used RIF Installer . | . . . . . . . . . . . . Robots Hacked . | . . . . . . . . . . . . Non-combat . | . . . . . . . . . . . . Combat . | . . . . . . . . . . . . Robot Hacks Applied . | . . . . . . . . . . . . Relay Couplers Released . | . . . . . . . . . . . . Fabnet Peak Effective % . | . . . . . . . . . . . . Robots Rewired . | . . . . . . . . . . . . Allies Hacked . | . . . . . . . . . . . . Hacks Repelled . | . . . . . . . . . . . . Allies | -11 -10 -9 -9 -9 -8 -8 -7 -7 -7 -7 -6 -------- Run | Yrd Mat Mat Min Exi Min Mat Fac Low Low Dat Pro Total Allies 6 | . . 1 3 . . . 1 . . . 1 Largest Group 4 | . . 1 4 3 3 1 1 1 . . 1 Highest-Rated Group 96 | . . 10 50 34 34 10 26 26 . . 96 Highest-Rated Ally 96 | . . 10 16 16 16 10 26 26 . . 96 Total Orders 4 | . . 4 . . . . . . . . . STAY 2 | . . 2 . . . . . . . . . FOLLOW 2 | . . 2 . . . . . . . . . Ally Attacks 35 | . . . 13 . 16 . . . . . 6 Total Damage 526 | . . . 125 . 200 . . . . . 201 Kills 5 | . . . 2 . 3 . . . . . . Allies Corrupted . | . . . . . . . . . . . . Allies Melted . | . . . . . . . . . . . . Intel | -11 -10 -9 -9 -9 -8 -8 -7 -7 -7 -7 -6 ------- Run | Yrd Mat Mat Min Exi Min Mat Fac Low Low Dat Pro Robot Analysis Total 5 | . . 2 . . . 2 1 . . . . Derelict Logs Recovered 4 | . . . 2 . . . . 1 . . 1 Drone Launches . | . . . . . . . . . . . . Drone Recoveries . | . . . . . . . . . . . . Exploration | -11 -10 -9 -9 -9 -8 -8 -7 -7 -7 -7 -6 ------------- Run | Yrd Mat Mat Min Exi Min Mat Fac Low Low Dat Pro Turns Passed 5559 | 73 526 398 761 594 239 933 850 642 121 30 392 Spaces Moved 4493 | 48 380 211 511 486 172 453 791 858 251 94 238 Core 433 | 2 . . . . . . . 340 91 . . Treads 165 | . . . . . . . . . . . 165 Legs 2745 | 44 380 211 511 486 172 429 434 78 . . . Wheels 26 | 2 . . . . . 24 . . . . . Hover . | . . . . . . . . . . . . Flight 1124 | . . . . . . . 357 440 160 94 73 Fastest Speed 32 | 50 120 120 120 120 120 100 34 34 32 32 32 Average Speed 95 | 123 120 120 120 120 120 125 87 54 38 32 120 Slowest Speed 250 | 190 120 120 120 120 120 200 200 250 50 32 160 Overloaded Moves . | . . . . . . . . . . . . Propulsion Burnouts . | . . . . . . . . . . . . Robots Hopped . | . . . . . . . . . . . . Cave-ins Triggered . | . . . . . . . . . . . . Exploration Rate (%) 48 | 4 60 22 85 91 41 26 16 90 49 75 24 Regions Visited 11 Branch Regions 7 Pre-discovered Areas 3 | . . . 1 . . . . 1 . . 1 Known Exits Taken 9 | . . 1 1 1 1 1 1 1 1 1 . Unknown Exits Taken 2 | 1 1 . . . . . . . . . . Scrap Searched 10 | . . . 2 . 1 . . 2 3 . 2 Spaces Dug 15 | . . . 6 . . 9 . . . . . Terrain Destroyed 100 | . . . 6 . . 9 . 85 . . . Melee 15 | . . . 6 . . 9 . . . . . Projectile . | . . . . . . . . . . . . AOE 85 | . . . . . . . . 85 . . . Terrain Rammed . | . . . . . . . . . . . . Walls Destroyed . | . . . . . . . . . . . . Machines Disabled . | . . . . . . . . . . . . Actions | -11 -10 -9 -9 -9 -8 -8 -7 -7 -7 -7 -6 --------- Run | Yrd Mat Mat Min Exi Min Mat Fac Low Low Dat Pro Total 5318 | 58 427 306 617 497 191 674 911 979 265 93 300 Wait 369 | . 20 51 76 10 4 88 45 46 7 . 22 Move 4482 | 47 379 210 510 485 171 452 790 857 250 93 238 Hop . | . . . . . . . . . . . . Pick Up 41 | 3 7 3 2 1 1 8 11 5 . . . Fast Attach 39 | 6 3 . . . . 8 6 8 4 . 4 Attach 29 | . 1 3 . . . 7 5 10 . . 3 Detach 9 | 1 . . . . . 1 1 4 . . 2 Swap 41 | 1 . 5 4 . 2 14 10 5 . . . Drop 51 | . 5 4 2 1 2 11 17 8 . . 1 Fire 139 | . 12 30 2 . 10 42 22 17 . . 4 Melee 117 | . . . 21 . 1 43 4 19 4 . 25 Ram . | . . . . . . . . . . . . Kick . | . . . . . . . . . . . . Crush 1 | . . . . . . . . . . . 1 Escape Stasis . | . . . . . . . . . . . . Rewire . | . . . . . . . . . . . . Trap . | . . . . . . . . . . . . Miscellaneous . | . . . . . . . . . . . . Route ------- -11/Scrapyard -10/Materials -9/Materials -9/Mines (discovered 2 exits: *Mat / *Exi) -9/Exiles -8/Mines -8/Materials (discovered 4 exits: *Fac x3 / Sto) -7/Factory -7/Lower Caves -7/Lower Caves -7/Data Miner -6/Proximity Caves History --------- Turn | Location | Event 46 | -11/Scrapyard | Discovered new exit (range 13) 74 | -11/Scrapyard | Entered Materials 312 | -10/Materials | Build established: Mutant 577 | -10/Materials | Discovered new exit (range 16) 600 | -10/Materials | Entered another Materials area 600 | -9/Materials | Evolved 2 slots: Utility x2 765 | -9/Materials | Discovered new exit (range 13) 838 | -9/Materials | Destroyed 9 combat bots 943 | -9/Materials | Identified exit to Mines 998 | -9/Materials | Entered Mines 998 | -9/Mines | Accompanied by 1 ally 1014 | -9/Mines | Met a Derelict bent on vengeance 1018 | -9/Mines | Assisted by bots powering up and referring to "LRC-V3" 1091 | -9/Mines | Excavation squad dispatched 1091 | -9/Mines | A large section of the Mines collapsed 1268 | -9/Mines | Build established: Scavenger-Mutant 1330 | -9/Mines | Discovered new exit (range 6) 1333 | -9/Mines | Learned location of Storage (-8) 1336 | -9/Mines | Identified exit to Materials 1754 | -9/Mines | Deemed a non-threat by the Exiles lab entrance 1754 | -9/Mines | Discovered new exit (range 5) 1758 | -9/Mines | Identified exit to Exiles 1759 | -9/Mines | Entered Exiles 1759 | -9/Exiles | Found Exiles lab abandoned 1759 | -9/Exiles | Accompanied by 3 allies 2326 | -9/Exiles | Discovered new exit (range 10) 2334 | -9/Exiles | Identified exit to Mines 2353 | -9/Exiles | Entered Mines 2353 | -8/Mines | Accompanied by 3 allies 2588 | -8/Mines | Discovered exit to Materials (range 3) 2592 | -8/Mines | Entered Materials 2592 | -8/Materials | Accompanied by 1 ally 2592 | -8/Materials | Evolved 2 slots: Propulsion x1, Utility x1 2593 | -8/Materials | Identified exit to Factory 2593 | -8/Materials | Identified exit to Storage 2833 | -8/Materials | Lost 3 parts (1n2w) 3119 | -8/Materials | Build established: Mutant 3140 | -8/Materials | Repaired Corrupted Imp. Ion Engine 3186 | -8/Materials | Repaired Corrupted Imp. Aluminum Leg 3269 | -8/Materials | Core integrity fell below 50% 3525 | -8/Materials | Entered Factory 3525 | -7/Factory | Evolved 2 slots: Power x1, Utility x1 3817 | -7/Factory | Build established: Scavenger-Mutant 4248 | -7/Factory | Repaired Imp. Light Armor Plating 4313 | -7/Factory | Discovered new exit (range 8) 4315 | -7/Factory | Identified exit to Lower Caves 4375 | -7/Factory | Entered Lower Caves 4375 | -7/Lower Caves | Accompanied by 1 ally 4410 | -7/Lower Caves | Encountered a Warlord checkpoint 4436 | -7/Lower Caves | Attracted the attention of an 0b10 base 4521 | -7/Lower Caves | Destroyed 11 combat bots 4531 | -7/Lower Caves | Lost 3 parts (1p1n1u) 4567 | -7/Lower Caves | Learned location of Zion (-6) 4683 | -7/Lower Caves | Lost 3 parts (2n1w) 4720 | -7/Lower Caves | Attracted the attention of an 0b10 checkpoint 4721 | -7/Lower Caves | Core integrity fell below 50% 4804 | -7/Lower Caves | Lost 8 parts (1p3n3u1w) 4963 | -7/Lower Caves | Discovered new exit (range 9) 4967 | -7/Lower Caves | Identified exit to Lower Caves 5017 | -7/Lower Caves | Entered another Lower Caves area 5060 | -7/Lower Caves | Build established: Mutant 5068 | -7/Lower Caves | Core integrity fell below 20% 5128 | -7/Lower Caves | Discovered new exit (range 14) 5132 | -7/Lower Caves | Identified exit to Data Miner 5138 | -7/Lower Caves | Entered Data Miner 5138 | -7/Data Miner | Discovered new exit (range 6) 5141 | -7/Data Miner | Identified exit to Proximity Caves 5146 | -7/Data Miner | Met Data Miner 5155 | -7/Data Miner | Acquired the access code to Warlord's prototype stash 5162 | -7/Data Miner | Received God Mode back door access code from Data Miner 5168 | -7/Data Miner | Entered Proximity Caves 5183 | -6/Proximity Caves | Spotted B-75 Beast 5185 | -6/Proximity Caves | Escorted by Enhanced Grunt 5221 | -6/Proximity Caves | Destroyed B-75 Beast 5242 | -6/Proximity Caves | Found Prototype Device 5242 | -6/Proximity Caves | Identified Exp. Thermal Shield 5488 | -6/Proximity Caves | Attracted the attention of an 0b10 outpost 5560 | -6/Proximity Caves | Destroyed by L-41 Fighter with Axe Last Messages --------------- 05530_ Hvy. Laser fries itself beyond repair. 05531_ G-50 Soldier destroyed. 05534_ G-50 Soldier Carbon-fiber Leg severed. 05534_ Spear follow-up attack on G-50 Soldier. 05534_ G-50 Soldier suffers critical hit (Impale). 05537_ Cryofiber Web destroyed. 05545_ Hvy. Laser fries itself beyond repair. 05545_ Destroyed Carbon-fiber Leg. 05545_ G-50 Soldier destroyed. 05547_ Penetrated by Slug. 05547_ VTOL Module destroyed. 05550_ Critical hit (Burn: +37). 05550_ Penetrated by Slug. 05552_ Y-64 Sentinel destroyed. 05554_ Ripper destroyed. 05555_ Slammed into L-41 Fighter. 05556_ Lgt. Angular Momentum Engine fries itself beyond repair. 05558_ Imp. Medium Treads severed. Map ----- +----------------------------------------------------+ | ?????????????????????????????????????????????????? | | ?????????????????????????????????????????????????? | | ?????????????????????????????????????????????????? | | ?????????????????????????????????????????????????? | | ?????????????????????????????????????????????????? | | ?????????????????????????????????????????????????? | | ?????????????????????????????????????????????????? | | ?????????????????????????????????????????????????? | | ?????????????????????????????????????????????????? | | #####????????????????????????????????????????????? | | #????????????????????????????????????????????? | | #????????????????????????????????????????????? | | #????????????????????????????????????????????? | | #????????????????????????????????????????????? | | "" #????????????????????????????????????????????? | | "# #????????????????????????????????????????????? | | ## #???????###?????????????????# ######?????????? | | ## #??????## #??????????????? #?????????? | | ## #?????## #???########### #????????? | | #????##= #??## #????????? | | ###?## #### ????????? | | ### ## % #### #### #??????????? | | ## ## ##??# #????????? #?????????? | | ### ###???#g#???????????????????????? | | #### ### ##?????#l#####???????????????????? | | #?# #?# ##??????#=@=%*#???????????????????? | | #?## #???????##### #???????????????????? | | #??### ### ##???????????# #???????????????????? | | #????###?# ##??????????### #???????????????????? | | ##???????# ###????????## #???????????????????? | | #??###??# ##???????# #???????????????????? | | #?## #### ###????## #???????????????????? | | ###" ##?### ##???????????????????? | | ## ### ##????????????????????? | | ## ####?????????????????????? | | % ##????????????????????????? | | ### #?????????????????????????? | | ## ##?#### ##????????????????????????? | | ?## % ##?# ## #????????????????????????? | | #### #?# ##???????????????????????? | | ## ##?# #####???????????????????? | | ## % ##?# ### ##??????????????????? | | #?# #??# #??????????????????? | | #?# #???# ##??????????????????? | | ## #?####????# ####???????????????????? | | ####### #?????????## ##??????????????????????? | | ??????# #??????????# #???????????????????????? | | ??????# ##?????????## #???????????????????????? | | ??????###?????????## ##??????????????????????? | | ??????????????????# ##?????????????????????? | +----------------------------------------------------+ Best States ------------- Heat Dissipation 48 Coolant Potential 65 Energy Generation 21 Energy Capacity 325 Matter Stores 300 Matter Capacity 300 Sight Range 16 Terrain Scan Density 10 Additional Mass Support 9 Base Temperature (-) 100 Armor Coverage 150 Resistance: KI 20 Resistance: TH 50 Resistance: EX 20 Resistance: EM 20 Resistance: I 20 Resistance: S 20 Resistance: P 20 Core Shielding 20 Evasion (%) 63 Targeting Accuracy 6 Melee Accuracy 8 Recoil Reduction 1 Particle Charging 15 Salvage Targeting 2 Offensive Hacking 10 Defensive Hacking 10 Item Schematics ----------------- Imp. Targeting Computer | -9/Materials | Scanalyzed Particle Gun | -9/Materials | Scanalyzed Lgt. Armor Plating | -9/Materials | Scanalyzed Med. Matter Pod | -9/Materials | Scanalyzed Particle Charger | -8/Materials | Scanalyzed Titanium Leg | -8/Materials | Scanalyzed Adv. Weight Redist. System | -8/Materials | Scanalyzed Xenon Bombardment Thruster | -7/Factory | Scanalyzed Lgt. Regenerative Plating | -7/Data Miner | Free Combat Drone Bay | -7/Data Miner | Free Gravity Neutralizer | -7/Data Miner | Free Cld. Aerolev Unit | -7/Data Miner | Free Nuclear Pulse Thruster | -7/Data Miner | Free Imp. Component Analysis Suite | -7/Data Miner | Free Imp. Arc Projector | -7/Data Miner | Free Adv. Field Recycling Unit | -7/Data Miner | Free Hvy. Phase Cannon | -7/Data Miner | Free Cmb. Gravmag System | -7/Data Miner | Free Imp. Lightning Gun | -7/Data Miner | Free Robot Schematics ------------------ L-41 Fighter | -7/Data Miner | Free A-15 Conveyor | -7/Data Miner | Free G-50 Soldier | -7/Data Miner | Free R-10 Processor | -7/Data Miner | Free X-62 Marksman | -7/Data Miner | Free B-48 Gladiator | -7/Data Miner | Free Fabricated ------------ Nothing Alien Tech Used ----------------- None Achievements -------------- None Challenges ------------ None Game ------ Seed FlightIntegrityStripper Manual? 0 Play Time 01:15:59 Cumulative 19.3 hours Start 2024.04.07 @ 00:37:26 End 2024.04.07 @ 01:52:35 Sessions 1 Manual Loads 0 Difficulty Adventurer Special Mode None Game No. 24 Rogue 23 Adventurer 1 Explorer 0 Win Type - Total 0 Types 0/0/0/0/0/0/0/0/0 Lore% 20 Gallery% 23 Achievement% 21 Wizard Run 0 Options --------- Layout 1 ASCII 0 Keyboard 0 Movement Mouse Keybinds 0 Fullscreen 1 Font 24/Smallcaps Map View 50x35 Zoom Use 0% Tactical HUD 1 Map Filters NONE Filters NONE Steam 1 RUN: 5a892072-8ec1-4ce8-917d-e3e090e4ada7